[Event "Titled Tuesday Blitz May 03 Early 2022"]
[White "Tan, Jun Ying"]
[Black "Harshavardhan G B"]
[WhiteFideId "5710413"]
[BlackFideId "25059009"]
[WhiteElo "1827"]
[BlackElo "1831"]
[Result "0-1"]
[Round "09"]
[TimeControl "180+1"]
[Date "2022.05.03"]
[WhiteClock "0:00:01"]
[BlackClock "0:01:05"]

1. d4 {[%clk 0:03:00]}  Nf6 {[%clk 0:02:58]} 2. c4 {[%clk 0:03:01]}  e5 {[%clk 0:02:56]} 3. dxe5 {[%clk 0:03:00]}  Ng4 {[%clk 0:02:55]} 4. Bf4 {[%clk 0:03:00]}  Nc6 {[%clk 0:02:54]} 5. Nf3 {[%clk 0:02:59]}  Bb4+ {[%clk 0:02:54]} 6. Nbd2 {[%clk 0:02:57]}  Qe7 {[%clk 0:02:54]} 7. e3 {[%clk 0:02:56]}  Ngxe5 {[%clk 0:02:54]} 8. Nxe5 {[%clk 0:02:54]}  Nxe5 {[%clk 0:02:55]} 9. Be2 {[%clk 0:02:47]}  Ng6 {[%clk 0:02:52]} 10. Bxc7 {[%clk 0:02:37]}  d5 {[%clk 0:02:49]} 11. Bg3 {[%clk 0:02:32]}  dxc4 {[%clk 0:02:47]} 12. Bxc4 {[%clk 0:02:29]}  O-O {[%clk 0:02:44]} 13. a3 {[%clk 0:02:24]}  Bxd2+ {[%clk 0:02:25]} 14. Qxd2 {[%clk 0:02:23]}  Nh4 {[%clk 0:02:26]} 15. Bd6 {[%clk 0:02:02]}  Nxg2+ {[%clk 0:02:24]} 16. Kf1 {[%clk 0:01:59]}  Qe4 {[%clk 0:02:20]} 17. Bd5 {[%clk 0:01:53]}  Nxe3+ {[%clk 0:02:13]} 18. fxe3 {[%clk 0:01:46]}  Bh3+ {[%clk 0:02:13]} 19. Ke1 {[%clk 0:01:43]}  Qh4+ {[%clk 0:02:08]} 20. Bg3 {[%clk 0:01:38]}  Qh5 {[%clk 0:02:06]} 21. e4 {[%clk 0:01:30]}  Rac8 {[%clk 0:02:03]} 22. Qe2 {[%clk 0:01:16]}  Bg4 {[%clk 0:01:59]} 23. Qd3 {[%clk 0:01:11]}  Kh8 {[%clk 0:01:58]} 24. Kd2 {[%clk 0:01:01]}  Qg5+ {[%clk 0:01:39]} 25. Ke1 {[%clk 0:00:45]}  f5 {[%clk 0:01:33]} 26. Qd2 {[%clk 0:00:24]}  Qg6 {[%clk 0:01:24]} 27. e5 {[%clk 0:00:19]}  f4 {[%clk 0:01:23]} 28. Bxf4 {[%clk 0:00:17]}  Rc2 {[%clk 0:01:24]} 29. Qe3 {[%clk 0:00:15]}  Re2+ {[%clk 0:01:22]} 30. Qxe2 {[%clk 0:00:14]}  Bxe2 {[%clk 0:01:23]} 31. Kxe2 {[%clk 0:00:11]}  Rxf4 {[%clk 0:01:22]} 32. Rac1 {[%clk 0:00:11]}  Qh5+ {[%clk 0:01:19]} 33. Kd3 {[%clk 0:00:08]}  Qf5+ {[%clk 0:01:18]} 34. Kd2 {[%clk 0:00:05]}  Rf2+ {[%clk 0:01:14]} 35. Ke1 {[%clk 0:00:06]}  Rxb2 {[%clk 0:01:05]} 36. Rf1 {[%clk 0:00:03]}  Qxe5+ {[%clk 0:01:05]} 37. Kd1 {[%clk 0:00:01]}  Qe2# {[%clk 0:01:05]} 0-1


[Site "https://www.chess.com"]

[Event "Titled Tuesday Blitz May 03 Early 2022"]
[White "Tanenbaum, Zachary"]
[Black "Rasulov, Vugar"]
[WhiteFideId "2060850"]
[BlackFideId "13402390"]
[WhiteElo "2168"]
[BlackElo "2560"]
[Result "0-1"]
[Round "09"]
[TimeControl "180+1"]
[Date "2022.05.03"]
[WhiteClock "0:00:05"]
[BlackClock "0:01:36"]

1. e4 {[%clk 0:02:59]}  c5 {[%clk 0:02:59]} 2. Nf3 {[%clk 0:03:00]}  Nc6 {[%clk 0:02:59]} 3. Nc3 {[%clk 0:03:00]}  e5 {[%clk 0:02:59]} 4. Bc4 {[%clk 0:03:00]}  d6 {[%clk 0:02:58]} 5. d3 {[%clk 0:03:00]}  Be7 {[%clk 0:02:59]} 6. Nd2 {[%clk 0:03:00]}  Bg5 {[%clk 0:02:57]} 7. Nf1 {[%clk 0:02:58]}  Bxc1 {[%clk 0:02:57]} 8. Rxc1 {[%clk 0:02:59]}  Nf6 {[%clk 0:02:57]} 9. Ne3 {[%clk 0:02:59]}  O-O {[%clk 0:02:58]} 10. O-O {[%clk 0:02:58]}  a6 {[%clk 0:02:58]} 11. a4 {[%clk 0:02:58]}  Rb8 {[%clk 0:02:56]} 12. Ncd5 {[%clk 0:02:54]}  b5 {[%clk 0:02:56]} 13. axb5 {[%clk 0:02:54]}  axb5 {[%clk 0:02:57]} 14. Ba2 {[%clk 0:02:49]}  Nxd5 {[%clk 0:02:52]} 15. Nxd5 {[%clk 0:02:49]}  Be6 {[%clk 0:02:52]} 16. c3 {[%clk 0:02:48]}  b4 {[%clk 0:02:51]} 17. Qc2 {[%clk 0:01:41]}  bxc3 {[%clk 0:02:45]} 18. bxc3 {[%clk 0:01:41]}  Qa5 {[%clk 0:02:45]} 19. Ra1 {[%clk 0:01:38]}  Qa3 {[%clk 0:02:43]} 20. Nf6+ {[%clk 0:01:16]}  gxf6 {[%clk 0:02:40]} 21. Bxe6 {[%clk 0:01:17]}  Qb2 {[%clk 0:02:39]} 22. Qxb2 {[%clk 0:01:17]}  Rxb2 {[%clk 0:02:40]} 23. Bd5 {[%clk 0:01:18]}  Ne7 {[%clk 0:02:40]} 24. Rfb1 {[%clk 0:01:12]}  Rfb8 {[%clk 0:02:38]} 25. Rxb2 {[%clk 0:01:12]}  Rxb2 {[%clk 0:02:39]} 26. g3 {[%clk 0:01:10]}  f5 {[%clk 0:02:10]} 27. Ra7 {[%clk 0:01:06]}  Nxd5 {[%clk 0:02:07]} 28. exd5 {[%clk 0:01:06]}  Rb3 {[%clk 0:02:07]} 29. Kf1 {[%clk 0:00:41]}  Rxc3 {[%clk 0:02:07]} 30. Ke2 {[%clk 0:00:41]}  Rc2+ {[%clk 0:02:01]} 31. Ke3 {[%clk 0:00:41]}  f4+ {[%clk 0:01:56]} 32. gxf4 {[%clk 0:00:37]}  exf4+ {[%clk 0:01:57]} 33. Kf3 {[%clk 0:00:36]}  Rd2 {[%clk 0:01:57]} 34. Ke4 {[%clk 0:00:34]}  Rxf2 {[%clk 0:01:55]} 35. Rd7 {[%clk 0:00:32]}  Re2+ {[%clk 0:01:46]} 36. Kxf4 {[%clk 0:00:32]}  Rf2+ {[%clk 0:01:47]} 37. Ke3 {[%clk 0:00:22]}  Rf6 {[%clk 0:01:47]} 38. Ke4 {[%clk 0:00:18]}  Kg7 {[%clk 0:01:47]} 39. Rd8 {[%clk 0:00:17]}  h5 {[%clk 0:01:47]} 40. h4 {[%clk 0:00:17]}  Kh7 {[%clk 0:01:44]} 41. Re8 {[%clk 0:00:16]}  Rg6 {[%clk 0:01:44]} 42. Rd8 {[%clk 0:00:15]}  Kg7 {[%clk 0:01:43]} 43. Kf5 {[%clk 0:00:15]}  Rg3 {[%clk 0:01:35]} 44. Rxd6 {[%clk 0:00:15]}  Rxd3 {[%clk 0:01:35]} 45. Kg5 {[%clk 0:00:15]}  c4 {[%clk 0:01:35]} 46. Kxh5 {[%clk 0:00:14]}  c3 {[%clk 0:01:36]} 47. Kg4 {[%clk 0:00:13]}  Rd4+ {[%clk 0:01:35]} 48. Kg3 {[%clk 0:00:11]}  Rc4 {[%clk 0:01:36]} 49. Rd8 {[%clk 0:00:05]}  c2 {[%clk 0:01:36]} 50. d6 {[%clk 0:00:05]}  c1=Q {[%clk 0:01:36]} 0-1


[Site "https://www.chess.com"]

[Event "Titled Tuesday Blitz May 03 Early 2022"]
[White "Tatarinov, Dmitry"]
[Black "Pranav, V"]
[WhiteFideId "24160067"]
[BlackFideId "25060783"]
[WhiteElo "2302"]
[BlackElo "2349"]
[Result "0-1"]
[Round "09"]
[TimeControl "180+1"]
[Date "2022.05.03"]
[WhiteClock "0:02:01"]
[BlackClock "0:01:34"]

1. d4 {[%clk 0:03:00]}  Nf6 {[%clk 0:03:00]} 2. c4 {[%clk 0:03:00]}  e6 {[%clk 0:03:00]} 3. Nf3 {[%clk 0:03:01]}  d5 {[%clk 0:03:00]} 4. g3 {[%clk 0:03:02]}  Bb4+ {[%clk 0:03:00]} 5. Bd2 {[%clk 0:03:01]}  Be7 {[%clk 0:03:00]} 6. Bg2 {[%clk 0:03:02]}  O-O {[%clk 0:03:00]} 7. O-O {[%clk 0:03:02]}  c6 {[%clk 0:03:01]} 8. Qc2 {[%clk 0:03:01]}  b6 {[%clk 0:03:01]} 9. Rc1 {[%clk 0:03:00]}  Ba6 {[%clk 0:03:01]} 10. b3 {[%clk 0:03:01]}  Nbd7 {[%clk 0:03:01]} 11. a4 {[%clk 0:03:01]}  Rc8 {[%clk 0:03:00]} 12. a5 {[%clk 0:02:51]}  c5 {[%clk 0:02:59]} 13. axb6 {[%clk 0:02:50]}  Qxb6 {[%clk 0:03:00]} 14. Qa2 {[%clk 0:02:43]}  Rc6 {[%clk 0:02:34]} 15. Ne5 {[%clk 0:02:40]}  Nxe5 {[%clk 0:02:33]} 16. dxe5 {[%clk 0:02:40]}  Ng4 {[%clk 0:02:21]} 17. cxd5 {[%clk 0:02:39]}  exd5 {[%clk 0:02:21]} 18. Nc3 {[%clk 0:02:27]}  c4 {[%clk 0:02:18]} 19. e3 {[%clk 0:02:23]}  cxb3 {[%clk 0:01:50]} 20. Qb2 {[%clk 0:02:22]}  Bc4 {[%clk 0:01:35]} 21. Nxd5 {[%clk 0:02:18]}  Bxd5 {[%clk 0:01:35]} 22. Bxd5 {[%clk 0:02:19]}  Rxc1+ {[%clk 0:01:36]} 23. Rxc1 {[%clk 0:02:18]}  Qh6 {[%clk 0:01:36]} 24. Be1 {[%clk 0:02:05]}  Qxh2+ {[%clk 0:01:35]} 25. Kf1 {[%clk 0:02:05]}  Nxe3+ {[%clk 0:01:35]} 26. Ke2 {[%clk 0:02:02]}  Nxd5 {[%clk 0:01:35]} 27. Qxb3 {[%clk 0:02:02]}  Qh5+ {[%clk 0:01:35]} 28. Qf3 {[%clk 0:02:02]}  Qxe5+ {[%clk 0:01:34]} 29. Kf1 {[%clk 0:02:02]}  Nf6 {[%clk 0:01:34]} 30. Rc7 {[%clk 0:02:01]}  Qxc7 {[%clk 0:01:34]} 0-1


[Site "https://www.chess.com"]

[Event "Titled Tuesday Blitz May 03 Early 2022"]
[White "Vagman, Roy"]
[Black "Dilmukhametov, Artur"]
[WhiteFideId "2828995"]
[BlackFideId "24179922"]
[WhiteElo "1927"]
[BlackElo "2244"]
[Result "1-0"]
[Round "09"]
[TimeControl "180+1"]
[Date "2022.05.03"]
[WhiteClock "0:02:34"]
[BlackClock "0:01:19"]

1. d4 {[%clk 0:03:00]}  e6 {[%clk 0:02:57]} 2. c4 {[%clk 0:03:00]}  Nf6 {[%clk 0:02:55]} 3. Nc3 {[%clk 0:03:00]}  d5 {[%clk 0:02:53]} 4. cxd5 {[%clk 0:03:00]}  exd5 {[%clk 0:02:53]} 5. Bg5 {[%clk 0:03:00]}  Be6 {[%clk 0:02:50]} 6. e3 {[%clk 0:03:01]}  Bb4 {[%clk 0:02:48]} 7. Bd3 {[%clk 0:03:01]}  Nc6 {[%clk 0:02:47]} 8. Nf3 {[%clk 0:03:00]}  Qd7 {[%clk 0:02:47]} 9. a3 {[%clk 0:02:55]}  Bxc3+ {[%clk 0:02:45]} 10. bxc3 {[%clk 0:02:55]}  Bf5 {[%clk 0:02:38]} 11. Bxf6 {[%clk 0:02:54]}  gxf6 {[%clk 0:02:32]} 12. Qc2 {[%clk 0:02:53]}  Bxd3 {[%clk 0:02:30]} 13. Qxd3 {[%clk 0:02:54]}  Na5 {[%clk 0:02:20]} 14. Ke2 {[%clk 0:02:52]}  Nc4 {[%clk 0:02:18]} 15. Rhb1 {[%clk 0:02:49]}  Rb8 {[%clk 0:02:17]} 16. g3 {[%clk 0:02:49]}  a5 {[%clk 0:02:15]} 17. a4 {[%clk 0:02:49]}  b5 {[%clk 0:02:07]} 18. axb5 {[%clk 0:02:49]}  Rxb5 {[%clk 0:02:04]} 19. Rxb5 {[%clk 0:02:50]}  Qxb5 {[%clk 0:02:03]} 20. Rb1 {[%clk 0:02:51]}  Qd7 {[%clk 0:01:58]} 21. Rb8+ {[%clk 0:02:51]}  Ke7 {[%clk 0:01:55]} 22. Rxh8 {[%clk 0:02:51]}  Qb5 {[%clk 0:01:49]} 23. Rxh7 {[%clk 0:02:51]}  Qb2+ {[%clk 0:01:49]} 24. Nd2 {[%clk 0:02:51]}  a4 {[%clk 0:01:43]} 25. Ke1 {[%clk 0:02:51]}  a3 {[%clk 0:01:43]} 26. Nxc4 {[%clk 0:02:40]}  Qc1+ {[%clk 0:01:35]} 27. Ke2 {[%clk 0:02:40]}  dxc4 {[%clk 0:01:32]} 28. Qe4+ {[%clk 0:02:35]}  Kd7 {[%clk 0:01:28]} 29. Rxf7+ {[%clk 0:02:35]}  Kd6 {[%clk 0:01:21]} 30. Rxf6+ {[%clk 0:02:33]}  Kd7 {[%clk 0:01:19]} 31. Qe6+ {[%clk 0:02:34]}  Kd8 {[%clk 0:01:19]} 32. Rf8# {[%clk 0:02:34]} 1-0


[Site "https://www.chess.com"]

[Event "Titled Tuesday Blitz May 03 Early 2022"]
[White "Varshini, V"]
[Black "Coto Mederos, Michel"]
[WhiteFideId "5091241"]
[BlackFideId "3508528"]
[WhiteElo "1948"]
[BlackElo "2427"]
[Result "0-1"]
[Round "09"]
[TimeControl "180+1"]
[Date "2022.05.03"]
[WhiteClock "0:00:04"]
[BlackClock "0:00:11"]

1. e4 {[%clk 0:03:00]}  e5 {[%clk 0:02:53]} 2. Nf3 {[%clk 0:02:59]}  Nc6 {[%clk 0:02:52]} 3. Bb5 {[%clk 0:02:58]}  a6 {[%clk 0:02:52]} 4. Ba4 {[%clk 0:02:58]}  Nf6 {[%clk 0:02:51]} 5. Qe2 {[%clk 0:02:58]}  b5 {[%clk 0:02:50]} 6. Bb3 {[%clk 0:02:58]}  Bc5 {[%clk 0:02:51]} 7. c3 {[%clk 0:02:58]}  d6 {[%clk 0:02:50]} 8. O-O {[%clk 0:02:58]}  Bb6 {[%clk 0:02:50]} 9. Rd1 {[%clk 0:02:58]}  h6 {[%clk 0:02:50]} 10. d3 {[%clk 0:02:53]}  O-O {[%clk 0:02:49]} 11. h3 {[%clk 0:02:54]}  Qe7 {[%clk 0:02:35]} 12. Nbd2 {[%clk 0:02:52]}  Na5 {[%clk 0:02:34]} 13. Bc2 {[%clk 0:02:52]}  c5 {[%clk 0:02:34]} 14. Nf1 {[%clk 0:02:52]}  Nc6 {[%clk 0:02:34]} 15. Ng3 {[%clk 0:02:52]}  Be6 {[%clk 0:02:33]} 16. Nh4 {[%clk 0:02:40]}  Kh7 {[%clk 0:02:03]} 17. Nhf5 {[%clk 0:02:37]}  Bxf5 {[%clk 0:02:03]} 18. Nxf5 {[%clk 0:02:36]}  Qe6 {[%clk 0:02:03]} 19. Be3 {[%clk 0:02:04]}  Ne7 {[%clk 0:02:01]} 20. d4 {[%clk 0:01:50]}  Nxf5 {[%clk 0:01:50]} 21. exf5 {[%clk 0:01:49]}  Qe7 {[%clk 0:01:49]} 22. dxc5 {[%clk 0:01:30]}  Bxc5 {[%clk 0:01:48]} 23. Bxc5 {[%clk 0:01:18]}  dxc5 {[%clk 0:01:49]} 24. Qe3 {[%clk 0:01:00]}  Rad8 {[%clk 0:01:48]} 25. Re1 {[%clk 0:00:54]}  Rfe8 {[%clk 0:01:45]} 26. Rad1 {[%clk 0:00:53]}  Rxd1 {[%clk 0:01:31]} 27. Rxd1 {[%clk 0:00:53]}  Kg8 {[%clk 0:01:30]} 28. Qd3 {[%clk 0:00:30]}  e4 {[%clk 0:01:06]} 29. Qd6 {[%clk 0:00:30]}  Qa7 {[%clk 0:01:07]} 30. Re1 {[%clk 0:00:13]}  c4 {[%clk 0:01:07]} 31. Qf4 {[%clk 0:00:12]}  Nd5 {[%clk 0:00:52]} 32. Qd2 {[%clk 0:00:10]}  e3 {[%clk 0:00:47]} 33. fxe3 {[%clk 0:00:09]}  Rxe3 {[%clk 0:00:41]} 34. Rxe3 {[%clk 0:00:08]}  Qxe3+ {[%clk 0:00:42]} 35. Qxe3 {[%clk 0:00:07]}  Nxe3 {[%clk 0:00:43]} 36. Be4 {[%clk 0:00:08]}  Nd1 {[%clk 0:00:33]} 37. Bb7 {[%clk 0:00:07]}  Nxb2 {[%clk 0:00:27]} 38. Bxa6 {[%clk 0:00:07]}  b4 {[%clk 0:00:28]} 39. Bxc4 {[%clk 0:00:05]}  Nxc4 {[%clk 0:00:19]} 40. cxb4 {[%clk 0:00:04]}  Kf8 {[%clk 0:00:19]} 41. Kf2 {[%clk 0:00:04]}  Ke7 {[%clk 0:00:19]} 42. Ke2 {[%clk 0:00:05]}  Kd6 {[%clk 0:00:19]} 43. Kd3 {[%clk 0:00:05]}  Kd5 {[%clk 0:00:19]} 44. Kc3 {[%clk 0:00:04]}  Nd6 {[%clk 0:00:19]} 45. a4 {[%clk 0:00:04]}  Nxf5 {[%clk 0:00:19]} 46. a5 {[%clk 0:00:04]}  Nd6 {[%clk 0:00:17]} 47. a6 {[%clk 0:00:03]}  Nb5+ {[%clk 0:00:18]} 48. Kb3 {[%clk 0:00:03]}  f5 {[%clk 0:00:16]} 49. Ka4 {[%clk 0:00:02]}  Kc6 {[%clk 0:00:16]} 50. Ka5 {[%clk 0:00:02]}  f4 {[%clk 0:00:16]} 51. Ka4 {[%clk 0:00:03]}  g5 {[%clk 0:00:16]} 52. Kb3 {[%clk 0:00:03]}  Kb6 {[%clk 0:00:12]} 53. Kc4 {[%clk 0:00:03]}  Nd6+ {[%clk 0:00:10]} 54. Kd5 {[%clk 0:00:04]}  Nf5 {[%clk 0:00:11]} 55. Ke4 {[%clk 0:00:04]}  Nh4 {[%clk 0:00:11]} 0-1


[Site "https://www.chess.com"]

[Event "Titled Tuesday Blitz May 03 Early 2022"]
[White "Vokarev, Sergey"]
[Black "Toncheva, Nadya"]
[WhiteFideId "4119711"]
[BlackFideId "2924056"]
[WhiteElo "2343"]
[BlackElo "1884"]
[Result "1-0"]
[Round "09"]
[TimeControl "180+1"]
[Date "2022.05.03"]
[WhiteClock "0:01:29"]
[BlackClock "0:00:03"]

1. e4 {[%clk 0:03:00]}  c5 {[%clk 0:02:58]} 2. Nf3 {[%clk 0:02:59]}  Nc6 {[%clk 0:02:57]} 3. d4 {[%clk 0:02:58]}  cxd4 {[%clk 0:02:58]} 4. Nxd4 {[%clk 0:02:58]}  e6 {[%clk 0:02:54]} 5. Nb5 {[%clk 0:02:54]}  d6 {[%clk 0:02:12]} 6. Bf4 {[%clk 0:02:53]}  e5 {[%clk 0:02:11]} 7. Be3 {[%clk 0:02:53]}  Nf6 {[%clk 0:02:10]} 8. Bg5 {[%clk 0:02:53]}  a6 {[%clk 0:02:04]} 9. N5c3 {[%clk 0:02:50]}  h6 {[%clk 0:01:57]} 10. Bxf6 {[%clk 0:02:50]}  gxf6 {[%clk 0:01:58]} 11. Nd5 {[%clk 0:02:47]}  f5 {[%clk 0:01:54]} 12. Nbc3 {[%clk 0:02:47]}  Be6 {[%clk 0:01:44]} 13. exf5 {[%clk 0:02:44]}  Bxf5 {[%clk 0:01:44]} 14. Bd3 {[%clk 0:02:43]}  Be6 {[%clk 0:01:34]} 15. O-O {[%clk 0:02:42]}  Bg7 {[%clk 0:01:15]} 16. Qh5 {[%clk 0:02:41]}  O-O {[%clk 0:01:04]} 17. Ne3 {[%clk 0:02:36]}  Qg5 {[%clk 0:01:00]} 18. Qxg5 {[%clk 0:02:36]}  hxg5 {[%clk 0:01:01]} 19. Rad1 {[%clk 0:02:27]}  Nd4 {[%clk 0:01:01]} 20. Ncd5 {[%clk 0:02:21]}  Rad8 {[%clk 0:00:52]} 21. c3 {[%clk 0:02:20]}  Nc6 {[%clk 0:00:48]} 22. Bf5 {[%clk 0:02:18]}  Rd7 {[%clk 0:00:14]} 23. f3 {[%clk 0:02:17]}  Ne7 {[%clk 0:00:13]} 24. Nxe7+ {[%clk 0:02:13]}  Rxe7 {[%clk 0:00:14]} 25. g4 {[%clk 0:02:11]}  Rd8 {[%clk 0:00:14]} 26. Nd5 {[%clk 0:02:10]}  Bxd5 {[%clk 0:00:11]} 27. Rxd5 {[%clk 0:02:09]}  Rc7 {[%clk 0:00:10]} 28. Rfd1 {[%clk 0:02:08]}  Rc6 {[%clk 0:00:10]} 29. Be4 {[%clk 0:01:58]}  Rb6 {[%clk 0:00:09]} 30. R1d2 {[%clk 0:01:58]}  Kf8 {[%clk 0:00:09]} 31. a4 {[%clk 0:01:56]}  Ke7 {[%clk 0:00:08]} 32. Kg2 {[%clk 0:01:52]}  Bf8 {[%clk 0:00:06]} 33. Kf2 {[%clk 0:01:47]}  f6 {[%clk 0:00:06]} 34. Ke3 {[%clk 0:01:47]}  Rc6 {[%clk 0:00:06]} 35. a5 {[%clk 0:01:45]}  Rc7 {[%clk 0:00:05]} 36. Kd3 {[%clk 0:01:39]}  Kf7 {[%clk 0:00:05]} 37. h4 {[%clk 0:01:38]}  gxh4 {[%clk 0:00:03]} 38. Rh2 {[%clk 0:01:38]}  Bh6 {[%clk 0:00:03]} 39. Rxh4 {[%clk 0:01:38]}  Rh8 {[%clk 0:00:02]} 40. Ke2 {[%clk 0:01:34]}  Bg7 {[%clk 0:00:02]} 41. Rxh8 {[%clk 0:01:34]}  Bxh8 {[%clk 0:00:03]} 42. Rxd6 {[%clk 0:01:34]}  Ke7 {[%clk 0:00:03]} 43. Rb6 {[%clk 0:01:33]}  Bg7 {[%clk 0:00:02]} 44. Rxb7 {[%clk 0:01:33]}  Rxb7 {[%clk 0:00:02]} 45. Bxb7 {[%clk 0:01:33]}  Kd6 {[%clk 0:00:02]} 46. Kd3 {[%clk 0:01:31]}  Kc5 {[%clk 0:00:03]} 47. b4+ {[%clk 0:01:29]}  Kd6 {[%clk 0:00:02]} 48. Bxa6 {[%clk 0:01:29]}  Bh6 {[%clk 0:00:03]} 1-0


[Site "https://www.chess.com"]

[Event "Titled Tuesday Blitz May 03 Early 2022"]
[White "Vokhidov, Shamsiddin"]
[Black "Sychev, Klementy"]
[WhiteFideId "14204223"]
[BlackFideId "4114060"]
[WhiteElo "2611"]
[BlackElo "2564"]
[Result "1-0"]
[Round "09"]
[TimeControl "180+1"]
[Date "2022.05.03"]
[WhiteClock "0:00:08"]
[BlackClock "0:00:02"]

1. e4 {[%clk 0:03:00]}  e5 {[%clk 0:02:59]} 2. Nf3 {[%clk 0:03:01]}  Nc6 {[%clk 0:03:00]} 3. Bb5 {[%clk 0:03:01]}  Nf6 {[%clk 0:03:00]} 4. d3 {[%clk 0:03:00]}  Bc5 {[%clk 0:03:00]} 5. Bxc6 {[%clk 0:03:00]}  dxc6 {[%clk 0:03:01]} 6. Nbd2 {[%clk 0:03:00]}  Be6 {[%clk 0:03:00]} 7. O-O {[%clk 0:02:58]}  Nd7 {[%clk 0:02:59]} 8. Nb3 {[%clk 0:02:57]}  Bb6 {[%clk 0:02:57]} 9. Ng5 {[%clk 0:02:57]}  Bxb3 {[%clk 0:02:56]} 10. axb3 {[%clk 0:02:57]}  f6 {[%clk 0:02:54]} 11. Nf3 {[%clk 0:02:58]}  Nf8 {[%clk 0:02:52]} 12. Nd2 {[%clk 0:02:59]}  Ne6 {[%clk 0:02:51]} 13. Nc4 {[%clk 0:02:59]}  O-O {[%clk 0:02:45]} 14. g3 {[%clk 0:02:55]}  Qd7 {[%clk 0:02:45]} 15. Qg4 {[%clk 0:02:52]}  Rad8 {[%clk 0:02:41]} 16. Nxb6 {[%clk 0:02:41]}  axb6 {[%clk 0:02:40]} 17. Be3 {[%clk 0:02:41]}  c5 {[%clk 0:02:39]} 18. h4 {[%clk 0:02:38]}  Qc6 {[%clk 0:02:31]} 19. h5 {[%clk 0:02:36]}  b5 {[%clk 0:02:27]} 20. f4 {[%clk 0:02:33]}  exf4 {[%clk 0:02:24]} 21. gxf4 {[%clk 0:02:33]}  f5 {[%clk 0:02:19]} 22. exf5 {[%clk 0:02:23]}  Nd4 {[%clk 0:02:19]} 23. Bxd4 {[%clk 0:02:22]}  cxd4 {[%clk 0:02:20]} 24. Rae1 {[%clk 0:02:16]}  Rf7 {[%clk 0:02:13]} 25. Rf2 {[%clk 0:02:14]}  Rdf8 {[%clk 0:02:01]} 26. Re5 {[%clk 0:02:12]}  Qd7 {[%clk 0:02:01]} 27. Rfe2 {[%clk 0:01:58]}  c6 {[%clk 0:01:36]} 28. Kh2 {[%clk 0:01:41]}  h6 {[%clk 0:01:30]} 29. Kg3 {[%clk 0:01:36]}  Kh8 {[%clk 0:01:29]} 30. R2e4 {[%clk 0:01:23]}  Qd8 {[%clk 0:01:21]} 31. Kh3 {[%clk 0:01:11]}  Qd7 {[%clk 0:01:19]} 32. Kg2 {[%clk 0:01:06]}  Qd8 {[%clk 0:01:17]} 33. Kg3 {[%clk 0:00:56]}  Qd7 {[%clk 0:01:15]} 34. Qg6 {[%clk 0:00:51]}  Rf6 {[%clk 0:01:10]} 35. Qg4 {[%clk 0:00:50]}  R6f7 {[%clk 0:01:09]} 36. Re6 {[%clk 0:00:46]}  Qd8 {[%clk 0:01:06]} 37. R4e5 {[%clk 0:00:44]}  Qd7 {[%clk 0:00:56]} 38. Qg6 {[%clk 0:00:43]}  Kg8 {[%clk 0:00:45]} 39. Rd6 {[%clk 0:00:36]}  Qc7 {[%clk 0:00:32]} 40. Rxd4 {[%clk 0:00:36]}  Qa5 {[%clk 0:00:33]} 41. Rde4 {[%clk 0:00:29]}  Qa1 {[%clk 0:00:31]} 42. Re1 {[%clk 0:00:25]}  Qxb2 {[%clk 0:00:30]} 43. R1e2 {[%clk 0:00:22]}  Qc1 {[%clk 0:00:29]} 44. Qg4 {[%clk 0:00:14]}  Qg1+ {[%clk 0:00:28]} 45. Rg2 {[%clk 0:00:14]}  Qd4 {[%clk 0:00:26]} 46. Kh2 {[%clk 0:00:14]}  Qd7 {[%clk 0:00:23]} 47. Kh3 {[%clk 0:00:13]}  Rxf5 {[%clk 0:00:21]} 48. Kh2 {[%clk 0:00:11]}  R5f7 {[%clk 0:00:16]} 49. Qxd7 {[%clk 0:00:09]}  Rxd7 {[%clk 0:00:17]} 50. Kg3 {[%clk 0:00:10]}  Rf6 {[%clk 0:00:14]} 51. f5 {[%clk 0:00:09]}  Rd4 {[%clk 0:00:09]} 52. Rge2 {[%clk 0:00:08]}  Kh7 {[%clk 0:00:07]} 53. R2e4 {[%clk 0:00:08]}  Rd7 {[%clk 0:00:05]} 54. Kf4 {[%clk 0:00:09]}  Rdf7 {[%clk 0:00:04]} 55. Kg4 {[%clk 0:00:09]}  Rf8 {[%clk 0:00:03]} 56. Rf4 {[%clk 0:00:09]}  R8f7 {[%clk 0:00:04]} 57. Re6 {[%clk 0:00:08]}  Kg8 {[%clk 0:00:04]} 58. Re8+ {[%clk 0:00:07]}  Rf8 {[%clk 0:00:03]} 59. Re5 {[%clk 0:00:08]}  R8f7 {[%clk 0:00:03]} 60. Rd4 {[%clk 0:00:08]}  Kh7 {[%clk 0:00:02]} 61. Rd8 {[%clk 0:00:08]} 1-0


[Site "https://www.chess.com"]